Cogmind - Beta 15 @@@ ROGUE MODE // 2025.07.04 @ 22:07:22 Player: mathSq Result: Destroyed by EL-678(R) with Subdweller Laser Performance ------------- Evolutions (0) 0 Regions Visited (2) 400 Robots Destroyed (30) 150 Value Destroyed (884) 884 Prototype IDs (2) 40 Alien Tech Used (0) 0 Bonus (0) 0 TOTAL SCORE: 1474 Bonus ------- None Cogmind --------- Core Integrity 0/250 Matter 300/300 Energy 180/200 System Corruption 1% Temperature Cool (6) Movement Rolling (215) Ox9 Location -10/Subcaves Parts ------- > --- POWER (1) -------- Subdweller Power Source > --- PROPULSION (2) --- Wheel > --- UTILITY (2) ------ Huge Storage Unit Core Shielding > --- WEAPON (2) ------- Subdweller Beam Cannon Barrage Gun > --- INVENTORY (25) --- Ion Engine Subdweller Power Source Spiked Treads Wheel Wheel Subdweller Monowheel Subdweller Monowheel Improved Heat Sink Disposable Heat Sink Large Storage Unit Medium Matter Pod (100) Machine Analyzer Seismic Detector Light Armor Plating Light Armor Plating Makeshift Light Armor Plating Shield Generator Subdweller Laser Subdweller Beam Cannon Battle Rifle Battle Rifle Subdweller Machine Gun Subdweller Machine Gun Slug Cannon Datajack Peak State ------------ > --- POWER ------------ Subdweller Power Source > --- PROPULSION ------- Wheel Wheel > --- UTILITY ---------- Huge Storage Unit Seismic Detector > --- WEAPON ----------- Subdweller Beam Cannon Barrage Gun > --- INVENTORY -------- Ion Engine Subdweller Power Source Spiked Treads Wheel Wheel Subdweller Monowheel Improved Heat Sink Disposable Heat Sink Large Storage Unit Medium Matter Pod Machine Analyzer Core Shielding Light Armor Plating Light Armor Plating Makeshift Light Armor Plating Shield Generator Subdweller Laser Battle Rifle Battle Rifle Subdweller Machine Gun Subdweller Machine Gun Slug Cannon Datajack [Rating: 15] Favorites ----------- Power Light Ion Engine Engine Light Ion Engine Propulsion Wheel Treads Light Treads Wheel Wheel Utility Seismic Detector Device Seismic Detector Storage Huge Storage Unit Protection Light Armor Plating Weapon Medium Laser Energy Gun Medium Laser Energy Cannon Subdweller Beam Cannon Ballistic Gun Light Assault Rifle Build | -11 -10 -10 ------- Run | Yrd Mat Sub Slots Evolved . | . . . Power . | . . . Propulsion . | . . . Utility . | . . . Weapon . | . . . Parts Attached 20 | 7 7 6 Power 3 | 1 1 1 Engine 3 | 1 1 1 Core . | . . . Reactor . | . . . Propulsion 5 | 2 2 1 Treads 2 | 2 . . Leg . | . . . Wheel 3 | . 2 1 Hover . | . . . Flight . | . . . Utility 6 | 2 3 1 Device 1 | 1 . . Storage 3 | 1 2 . Processor . | . . . Hackware . | . . . Protection 2 | . 1 1 Artifact . | . . . Weapon 6 | 2 1 3 Energy Gun 2 | 2 . . Energy Cannon 1 | . . 1 Ballistic Gun 3 | . 1 2 Ballistic Cannon . | . . . Launcher . | . . . Special Weapon . | . . . Impact Weapon . | . . . Slashing Weapon . | . . . Piercing Weapon . | . . . Special Melee Weapon . | . . . Unidentified Prototypes . | . . . Parts Lost 9 | . 3 6 Power 2 | . 1 1 Propulsion 3 | . 1 2 Utility 1 | . . 1 Weapon 3 | . 1 2 Highest Loss Streak 2 | . 2 2 To Critical Strikes . | . . . Average Backups 13 | 4 10 16 Power 1 | . 1 1 Propulsion 2 | 3 3 2 Utility 5 | . 3 8 Weapon 2 | . 1 3 Tool/Special . | . . . Unused Backups 28 | . 2 26 Power 3 | . . 3 Propulsion 7 | . 2 5 Utility 9 | . . 9 Weapon 8 | . . 8 Tool/Special 1 | . . 1 Average Slot Usage (%) 99 | . 99 99 Engine 13 | . 14 13 Treads 10 | . 19 3 Wheel 17 | . 8 23 Device 8 | . 5 11 Storage 14 | . 14 14 Protection 5 | . 7 2 Energy Gun 12 | . 25 2 Energy Cannon 6 | . . 11 Ballistic Gun 8 | . 2 14 Peak Build Rating 15 | 7 8 15 Average Rating 9 | 5 7 11 On Entrance 5 | . 7 8 Naked Turns . | . . . Heaviest Build 98 | 13 90 98 Greatest Support 40 | 40 40 20 Greatest Overweight (x) 9 | 1 8 9 Average Overweight (x) 2 | . 3 2 Largest Inventory Capacity 25 | 8 25 25 Average Capacity 17 | 7 17 18 Most Carried 25 | 7 15 25 Average Carried 13 | 4 10 16 Final Capacity 25 | 8 15 25 Final Carried 25 | 7 15 25 Class Distribution -------------------- 96% | Mutant 3% | Scavenger-Mutant Dominant Class ---------------- Mutant | -10/Materials Mutant | -10/Subcaves Resources | -11 -10 -10 ----------- Run | Yrd Mat Sub Matter Collected 916 | 219 367 330 Remotely . | . . . Salvage Created 1030 | 16 589 425 Parts 69 | 2 28 39 Haulers Intercepted 1 | . 1 . Recyclers Shooed . | . . . Parts Field Recycled . | . . . Retrieved Matter . | . . . Parts Self-Destructed 8 | . . 8 Prevented . | . . . Kills | -11 -10 -10 ------- Run | Yrd Mat Sub Combat Hostiles Destroyed 28 | . 16 12 Guns 21 | . 16 5 Cannons 7 | . . 7 Classes Destroyed 6 | 1 3 2 Tunneler 1 | 1 . . Hauler 1 | . 1 . Swarmer 7 | . 5 2 Grunt 11 | . 11 . Sentry 1 | . . 1 Subdweller 9 | . . 9 Best Kill Streak 4 | 1 4 2 Combat Bots Only 4 | . 4 2 Max Kills in Single Turn 1 | 1 1 1 Gunslinging . | . . . Exploded . | . . . Melee . | . . . Uniques/NPCs Destroyed . | . . . Combat | -11 -10 -10 -------- Run | Yrd Mat Sub Hostile Shots Fired 118 | . 78 40 Missed 29 | . 18 11 Hits 89 | . 60 29 Projectile 89 | . 60 29 Critical Strikes 1 | . 1 . Damage Taken 1233 | . 635 598 Core 265 | . 96 169 Absorbed by Shields . | . . . Redirected to Shielding 34 | . . 34 Core Remaining (%) 100 | 100 . . Volleys Fired 94 | 1 57 36 Largest 2 | 2 2 2 Hottest 110 | 100 100 110 Shots Fired 179 | 2 114 63 Gun 146 | 2 114 30 Cannon 33 | . . 33 Launcher . | . . . Special . | . . . Kinetic 32 | . 5 27 Thermal 147 | 2 109 36 Explosive . | . . . Electromagnetic . | . . . Robot Hit Streak 14 | 1 14 9 Robot Miss Streak 3 | 1 3 3 Penetration Max . | . . . Secondary Targets 1 | . 1 . Max Gunslinging Chain 1 | . 1 . Shots Hit Robots 116 | 1 78 37 Core Hits 48 | 2 31 15 Critical Kills . | . . . Critical Parts Destroyed . | . . . Critical Strikes 11 | . 11 . Burn 11 | . 11 . Melee Attacks . | . . . Impact . | . . . Slashing . | . . . Piercing . | . . . Sneak Attacks . | . . . Combat Hostiles . | . . . Follow-up Attacks . | . . . Damage Inflicted 1841 | 14 1005 822 Guns 1299 | 12 1003 284 Cannons 538 | . . 538 Explosions . | . . . Melee . | . . . Ramming 4 | 2 2 . Kinetic 281 | . 22 259 Thermal 1556 | 12 981 563 Explosive . | . . . Electromagnetic . | . . . Impact . | . . . Slashing . | . . . Piercing . | . . . Highest Corruption 1 | . 1 1 Average Corruption 1 | . 1 1 Corruption Purged . | . . . Corruption Blocked . | . . . Effects 12 | . 5 7 Message Errors 5 | . 2 3 Matter Fused 3 | . 2 1 Heat Flow Errors 1 | . . 1 Energy Discharges 1 | . . 1 Data Loss (minor) 2 | . 1 1 Overload Shots . | . . . Overflow Damage 29 | . . 29 Projectiles 29 | . . 29 Explosions . | . . . Melee . | . . . Knockbacks . | . . . Impact . | . . . Kinetic . | . . . Secondary . | . . . Self-Inflicted Damage . | . . . Shots . | . . . Rammed 3 | 1 2 . Targets Rammed 3 | 1 2 . Kicked . | . . . Crushed . | . . . Highest Temperature 336 | 39 336 89 Average Temperature 104 | 20 119 18 Received Heat Transfer 411 | . 282 129 Effects 4 | . 4 . Energy Bleed 2 | . 2 . Matter Decay 2 | . 2 . Siege Activations . | . . . Martial Activations . | . . . Shielding Activations . | . . . Robots Disrupted . | . . . Combat Hostiles . | . . . Robots Corrupted . | . . . Combat Hostiles . | . . . Parts Fried . | . . . Impact Corruptions . | . . . Robots Melted . | . . . Combat Hostiles . | . . . Parts Melted 11 | . 10 1 Heat Transferred 4403 | 37 3589 777 Parts Sabotaged . | . . . Parts Stolen . | . . . Parts Stripped . | . . . Power Chain Reactions . | . . . Alert | -11 -10 -10 ------- Run | Yrd Mat Sub Maximum Alert Level 1 | . 1 . Low Security (%) 92 | 100 91 . Level 1 7 | . 8 . Level 2 . | . . . Level 3 . | . . . Level 4 . | . . . Level 5 . | . . . High Security . | . . . Max Security . | . . . Peak Influence 224 | 5 224 . Initial . | . . . Average 81 | . 93 . Influence Increases 613 | 5 533 75 Destroy 0b10 Robot/C 380 | . 320 60 Destroy 0b10 Robot/NC 10 | 5 5 . Destroy Leader 62 | . 62 . Successful Hack 10 | . 10 . Destroy Structure 1 | . 1 . Partial Spotted 15 | . 15 . Lose Combat Pursuer 135 | . 120 15 Influence Decreases 613 | 5 407 201 Entered New Map 62 | . . 62 Time Decay 521 | 5 377 139 Lost Part 30 | . 30 . Squads Dispatched 2 | . 2 . Investigation 2 | . 2 . Extermination . | . . . Reinforcement . | . . . Assault . | . . . Garrison . | . . . Intercept . | . . . Searches Triggered . | . . . Construction Impeded . | . . . Haulers Reinforced . | . . . Active Scanning Responses . | . . . Cargo Convoy Interrupts . | . . . Stealth | -11 -10 -10 --------- Run | Yrd Mat Sub Distress Signals 3 | . 3 . Communications Jammed . | . . . Distress Signals . | . . . Times Spotted 41 | . 27 14 Peak Tracking Total 4 | . 4 2 Tactical Retreats 7 | . 6 1 Traps | -11 -10 -10 ------- Run | Yrd Mat Sub Traps Triggered 4 | . 3 1 Indirectly . | . . . Trap Hack Attempts . | . . . Triggered . | . . . Disarmed . | . . . Reprogrammed . | . . . Reused . | . . . Traps Extracted . | . . . Installed . | . . . Triggered . | . . . Machines | -11 -10 -10 ---------- Run | Yrd Mat Sub Machines Disabled . | . . . Max in Single Turn . | . . . Machines Repaired . | . . . Machines Dismantled . | . . . Machines Sabotaged . | . . . Overloaded Fab Kills . | . . . Hacking | -11 -10 -10 --------- Run | Yrd Mat Sub Machines Accessed 7 | . 7 . Terminals 7 | . 7 . Fabricators . | . . . Repair Stations . | . . . Recycling Units . | . . . Scanalyzers . | . . . Garrison Access . | . . . Total Hacks 15 | . 15 . Successful 5 | . 5 . Failed 10 | . 10 . Catastrophic . | . . . Database Lockouts . | . . . Manual 5 | . 5 . Terminals 15 | . 15 . Fabricators . | . . . Repair Stations . | . . . Recycling Units . | . . . Scanalyzers . | . . . Garrison Access . | . . . Terminal Hacks 5 | . 5 . Robot Analysis 2 | . 2 . Prototype ID Bank 1 | . 1 . Locate Traps 1 | . 1 . Hauler Manifests 1 | . 1 . Fabricator Hacks . | . . . Repair Station Hacks . | . . . Recycling Unit Hacks . | . . . Scanalyzer . | . . . Garrison Access Hacks . | . . . Unauthorized Hacks . | . . . Terminals . | . . . Fabricators . | . . . Repair Stations . | . . . Recycling Units . | . . . Scanalyzers . | . . . Garrison Access . | . . . Data Cores Recovered . | . . . Used . | . . . Hacking Detections 6 | . 6 . Full Trace Events 1 | . 1 . Feedback Events . | . . . Feedback Blocked . | . . . Robot Schematics Acquired . | . . . Robots Built . | . . . Authchips . | . . . Time . | . . . Total Robot Build Rating . | . . . Part Schematics Acquired . | . . . Parts Built . | . . . Authchips . | . . . Time . | . . . Total Part Build Rating . | . . . Parts Repaired . | . . . Time . | . . . Parts Recycled . | . . . Recycled Matter . | . . . Retrieved Matter . | . . . Retrieved Components . | . . . Parts Scanalyzed . | . . . Part Schematics Acquired . | . . . Parts Damaged . | . . . Bothacking | -11 -10 -10 ------------ Run | Yrd Mat Sub Used RIF Installer . | . . . Robots Hacked . | . . . Non-combat . | . . . Combat . | . . . Robot Hacks Applied . | . . . Relay Couplers Released . | . . . Fabnet Peak Effective % . | . . . Robots Rewired . | . . . Allies Hacked . | . . . Hacks Repelled . | . . . Allies | -11 -10 -10 -------- Run | Yrd Mat Sub Total Allies . | . . . Largest Group . | . . . Highest-Rated Group . | . . . Highest-Rated Ally . | . . . Total Orders . | . . . Ally Attacks . | . . . Total Damage . | . . . Kills . | . . . Allies Corrupted . | . . . Allies Melted . | . . . Intel | -11 -10 -10 ------- Run | Yrd Mat Sub Active Infowar (turns) 1639 | 39 457 1143 Seismic 1639 | 39 457 1143 Robot Analysis Total 2 | . 2 . Derelict Logs Recovered 2 | . . 2 Drone Launches . | . . . Drone Recoveries . | . . . Exploration | -11 -10 -10 ------------- Run | Yrd Mat Sub Turns Passed 2667 | 160 1101 1406 Spaces Moved 1513 | 73 478 962 Core 5 | 5 . . Treads 280 | 68 175 37 Legs . | . . . Wheels 1228 | . 303 925 Hover . | . . . Flight . | . . . Fastest Speed 50 | 50 110 95 Average Speed 136 | 153 165 120 Slowest Speed 240 | 160 200 240 Overloaded Moves . | . . . Propulsion Burnouts . | . . . Robots Hopped . | . . . Potential Cave-ins . | . . . Cave-ins Triggered . | . . . Exploration Rate (%) 46 | 6 76 58 Regions Visited 2 Branch Regions 1 Pre-discovered Areas 1 | . . 1 Known Exits Taken . | . . . Unknown Exits Taken 2 | 1 1 . Scrap Searched 4 | . . 4 Spaces Dug . | . . . Terrain Destroyed 3 | . . 3 Melee . | . . . Projectile 3 | . . 3 AOE . | . . . Terrain Rammed . | . . . Walls Destroyed . | . . . Machines Disabled . | . . . Actions | -11 -10 -10 --------- Run | Yrd Mat Sub Total 1919 | 115 666 1138 Wait 212 | 27 97 88 Move 1511 | 72 477 962 Hop . | . . . Pick Up 39 | 7 13 19 Fast Attach 9 | 7 . 2 Attach 8 | . 4 4 Detach 1 | . 1 . Swap 32 | . 11 21 Drop 10 | . 4 6 Fire 94 | 1 57 36 Melee . | . . . Ram 1 | . 1 . Kick . | . . . Crush 2 | 1 1 . Escape Stasis . | . . . Rewire . | . . . Trap . | . . . Miscellaneous . | . . . Route ------- -11/Scrapyard -10/Materials (discovered 4 exits: [*Mat x2] / [*Min] / [*Sub]) -10/Subcaves (discovered 1 exit: [*Mat]) History --------- Turn | Location | Event 4 | -11/Scrapyard | Discovered new exit (range 16) 161 | -11/Scrapyard | Entered Materials 299 | -10/Materials | Discovered new exit (range 7) 314 | -10/Materials | Build established: Mutant 363 | -10/Materials | Discovered new exit (range 5) 678 | -10/Materials | Discovered new exit (range 9) 1245 | -10/Materials | Discovered new exit (range 6) 1262 | -10/Materials | Entered Subcaves 1263 | -10/Subcaves | Approached by a straggling Scientist 1266 | -10/Subcaves | Learned location of 1 exit from Materials 1284 | -10/Subcaves | Learned location of Storage (-8) 1685 | -10/Subcaves | Core integrity fell below 50% 2206 | -10/Subcaves | Shifting Twisted Machinery released Barrage Gun 2217 | -10/Subcaves | Shifting Twisted Machinery released Battle Rifle 2475 | -10/Subcaves | Core integrity fell below 20% 2539 | -10/Subcaves | Discovered new exit (range 14) 2668 | -10/Subcaves | Destroyed by EL-678(R) with Subdweller Laser Last Messages --------------- 02459_ System corrupted: Energy discharge (-46). 02459_ PR-B5U(R) destroyed. 02473_ BB-UE4(R) affixes Scrap Shield Fragment to Scrap Shield. 02480_ BB-UE4(R) destroyed. 02484_ Acquired 40 matter. 02486_ Acquired 19 matter. 02487_ OCW=D6EWW%ND/>#ICJXEA 02488_ Acquired Sub. Power Source. 02491_ Acquired Sub. Laser. 02496_ Acquired Sub. Machine Gun. 02498_ Acquired Disposable Heat Sink. 02539_ EXIT=FOUND 02580_ Acquired Spk. Treads. 02591_ Acquired Mak. Light Armor Plating. 02617_ Wheel destroyed. 02618_ IB-YU2(R) destroyed. 02624_ Acquired 5 matter. 02629_ Acquired Sub. Monowheel. 02632_ Acquired Sub. Beam Cannon. 02655_ Subatomizers dissect the Sub. Machine Gun. Map ----- +----------------------------------------------------+ | ????????????????????????????## #???????????? | | ?????????????????????????????# #???????????? | | ?????????????????????????????# ##???????????? | | ###??????????????????????????## #????????????? | | ???????????????????###?????# ##???????????? | | ???????????????????# ##???## #####???????? | | ?????????????????????# #????# #???????? | | ##????????????????????# ###??# ##??##???? | | #????????????????????## ##### % #?##"#???? | | #??????????????????## ### #?#" #???? | | #?????????????????# ### ###""#???? | | ???????????????## ## ## "#???? | | ??????????????# % ### """#???? | | ?????????????# %#?#"" ""#???? | | ??????????????# ### ###""" "#???? | | ??????????????# #?### ## " "#???? | | # ???????????###??# ###?## # "#???? | | ?# ????????????## ##?# ] #??#" " #???? | | ???????????##### #?## # #??#"" #???? | | ???????????# # #??# # #??##"## ## #???? | | ????????????# #### * ## #???##### #?##???? | | ???????????## &&#### #?????# #??????? | | ???????????# & ##??# #???# #??????? | | ???????????## ### #&!=#???# ##? ??????? | | ?????????? ??## ## R##????##?# #?????? | | ???????# ????#* ##&!@#???????## ###?????? | | ???????# ????# ## #????????## #???????? | | ??????# ?????#%&## #?????????# <"#???????? | | ????? ## ????#!&## #????????? ""????????? | | ???# ??##?????## #????????# ""????????? | | ???## ??????????? ???????? ????????? | | ????##????????????# ??????? ??????????? | | ??????????????????#### # #?????? # ??????????? | | ????????????????????? # ##?????#####???????????? | | ????????????????????? ?##??????????????????????? | | ????????????????????# ?????????????????????????? | | ????????????????????## ?????????????????????????? | | ?????????????????????###?????????????????????????? | | ?????????????????????????????????????????????????? | | ?????????????????????????????????????????????????? | | ?????????????????????????????????????????????????? | | ?????????????????????????????????????????????????? | | ?????????????????????????????????????????????????? | | ?????????????????????????????????????????????????? | | ?????????????????????????????????????????????????? | | ?????????????????????????????????????????????????? | | ?????????????????????????????????????????????????? | | ?????????????????????????????????????????????????? | | ?????????????????????????????????????????????????? | | ?????????????????????????????????????????????????? | +----------------------------------------------------+ Best States ------------- Heat Dissipation 25 Energy Generation 15 Energy Capacity 200 Matter Stores 300 Matter Capacity 300 Sight Range 16 Terrain Scan Density 10 Armor Coverage 150 Core Shielding 20 Evasion (%) 41 Recoil Reduction 2 Item Schematics ----------------- None Robot Schematics ------------------ None Fabricated ------------ Nothing Repaired ---------- Nothing Alien Tech Used ----------------- None Achievements -------------- None Challenges ------------ None Game ------ Seed CannonSupersonicNanovents Manual? 0 Play Time 00:21:09 Cumulative 84.8 hours Start 2025.07.04 @ 21:47:24 End 2025.07.04 @ 22:07:22 Sessions 1 Manual Loads 0 Difficulty Rogue Special Mode None Game No. 40 Rogue 40 Adventurer 0 Explorer 0 Win Type - Total 2 Types 1/0/1/0/0/0/0/0/0/0 Lore% 56 Gallery% 60 Achievement% 50 Wizard Run 0 Options --------- Layout 0 ASCII 0 Keyboard 0 Movement Vi Keybinds 0 Fullscreen 1 Font 24/Tamsyn Map View 76x50 Zoom Use 0% Tactical HUD 1 Map Filters NONE Filters NONE Steam 1 RUN: 2d025b7a-bf56-4020-8020-08685e4734c3